bitfinex-derivatives/quotes_SOLF0:USTF0_20260211
["timestamp","ask_amount","ask_price","bid_price","bid_amount"]
[1770795936090,101.82,81.157,81.053,12.3172607]
[1770795936091,3.11411759,81.15,81.1,3.11411759]
[1770795936293,13.40480604,81.15,81.11,3.11411759]
[1770795936494,13.40480604,81.166,81.12,3.11411759]
[1770795937387,9.1460623,81.185,81.14,3.11411759]
[1770795937582,13.3769465,81.188,81.15,3.11411759]
[1770795937988,13.3769465,81.202,81.15,3.11411759]
[1770795938589,13.3769465,81.202,81.16,3.11411759]
[1770795939795,13.3769465,81.202,81.152,11.0985]
[1770795940095,3.11411759,81.2,81.152,11.0985]
[1770795940598,13.3769465,81.202,81.162,11.0972]
[1770795942198,13.34058372,81.214,81.17,3.11411759]
[1770795943190,13.34058372,81.228,81.18,3.11411759]
[1770795943397,13.32680571,81.219,81.17,3.11411759]
[1770795944195,16.4409233,81.21,81.16,3.11411759]
[1770795944696,16.4409233,81.21,81.161,11.0973]
[1770795945889,13.26636461,81.199,81.15,3.11411759]
[1770795946091,13.26636461,81.199,81.147,11.0992]
[1770795946293,13.26636461,81.199,81.15,3.11411759]
[1770795946901,13.26636461,81.199,81.147,11.0992]
[1770795948903,13.26636461,81.199,81.157,11.0977]
[1770795954505,13.26636461,81.199,81.13,8.32675709]
[1770795955600,13.26636461,81.199,81.158,11.0976]
[1770795955796,13.26636461,81.199,81.13,8.32675709]
[1770795957806,13.26636461,81.199,81.156,11.098]
[1770795958506,13.28587156,81.212,81.173,11.0957]
[1770795958704,13.28587156,81.227,81.15,8.32675709]
[1770795959208,13.28587156,81.227,81.105,22.83864029]
[1770795959209,13.28587156,81.227,81.146,98.32]
[1770795959810,8.32675709,81.23,81.146,98.32]
[1770795959811,13.25719619,81.224,81.162,11.0971]
[1770795960715,8.32675709,81.23,81.162,11.0971]
[1770795960716,13.25719619,81.219,81.162,11.0971]
[1770795961217,13.25719619,81.219,81.148,11.0991]
[1770795961607,13.23028886,81.209,81.148,11.0991]
[1770795961807,98.32,81.225,81.148,11.0991]
[1770795961808,13.23028886,81.197,81.148,11.0991]
[1770795964719,13.23028886,81.197,81.13,8.32675709]
[1770795965320,13.23028886,81.197,81.15,11.0988]
[1770795966119,8.32675709,81.23,81.11,27.0]
[1770795966120,13.22869164,81.195,81.136,11.1008]
[1770795967121,13.22869164,81.189,81.136,11.1008]
[1770795969420,13.25745275,81.159,81.11,3.10996853]
[1770795969715,13.25745275,81.15,81.11,3.10996853]
[1770795969915,13.25745275,81.169,81.124,11.1023]
[1770795970123,13.25745275,81.184,81.13,3.10996853]
[1770795970418,13.25745275,81.184,81.14,3.10996853]
[1770795971222,13.25745275,81.184,81.141,11.1001]
[1770795973517,13.25745275,81.184,81.14,3.10996853]
[1770795973820,11.46228879,81.234,81.131,11.1013]
[1770795973821,13.26120287,81.179,81.131,11.1013]
[1770795975625,13.27377565,81.192,81.15,3.10996853]
[1770795976923,13.27377565,81.192,81.148,11.099]
[1770795978323,13.27377565,81.192,81.137,11.1005]
[1770795979317,13.31299172,81.183,81.127,11.1019]
[1770795980222,13.31299172,81.181,81.127,11.1019]
[1770795980417,13.31299172,81.18,81.127,11.1019]
[1770795980614,13.31299172,81.173,81.118,11.1032]
[1770795980818,13.31299172,81.173,81.09,8.32720682]
[1770795981213,13.31299172,81.173,81.11,8.32720682]
[1770795981822,13.31299172,81.173,81.124,11.1023]
[1770795982223,13.31299172,81.173,81.11,8.32720682]
[1770795982719,13.31299172,81.173,81.122,11.1025]
[1770795988229,13.31299172,81.173,81.13,11.1015]
[1770795989125,13.31362704,81.171,81.11,8.32720682]
[1770795990715,13.23492025,81.185,81.143,11.0997]
[1770795998523,13.26253813,81.183,81.13,11.1015]
[1770795998730,13.26253813,81.181,81.13,11.1015]
[1770795999028,13.26253813,81.179,81.13,11.1015]
[1770795999233,13.25411663,81.177,81.13,11.1015]
[1770796002631,13.25411663,81.177,81.13,11.1016]
[1770796003733,13.25411663,81.177,81.137,11.1005]
[1770796005130,101.64,81.198,81.152,11.0985]
[1770796005336,13.32108322,81.196,81.152,11.0985]
[1770796007832,13.32108322,81.196,81.142,11.0998]
[1770796008229,13.32826953,81.194,81.116,22.83864029]
[1770796008425,13.32826953,81.192,81.112,22.83864029]
[1770796008630,13.32826953,81.19,81.139,11.1003]
[1770796010139,13.32826953,81.19,81.151,11.0987]
[1770796011640,22.42249226,81.204,81.151,11.0987]
[1770796011838,13.32094043,81.204,81.151,11.0987]
[1770796012234,13.32094043,81.203,81.151,11.0987]
[1770796013142,13.32094043,81.201,81.151,11.0987]
[1770796013341,13.24254411,81.199,81.151,11.0987]
[1770796015337,13.24254411,81.199,81.15,11.0987]
[1770796016147,13.24254411,81.199,81.159,11.0976]
[1770796018137,13.24254411,81.199,81.15,11.0987]
[1770796018745,13.24254411,81.199,81.14,11.1002]
[1770796019240,13.24254411,81.199,81.148,11.0991]
[1770796020241,13.24254411,81.199,81.156,11.098]
[1770796020843,11.0895,81.219,81.124,37.08]
[1770796020844,13.25461062,81.218,81.17,3.10755793]
[1770796021547,13.25461062,81.218,81.18,3.10755793]
[1770796022948,13.25461062,81.218,81.17,3.10755793]
[1770796023751,13.25461062,81.218,81.171,11.0959]
[1770796028954,13.25461062,81.218,81.179,11.0948]
[1770796034756,13.25461062,81.218,81.18,3.10755793]
[1770796035165,13.25461062,81.218,81.183,11.0942]
[1770796035356,13.31244428,81.227,81.183,11.0942]
[1770796036257,13.31244428,81.227,81.193,11.0929]
[1770796036658,13.31244428,81.226,81.185,11.094]
[1770796036957,13.31244428,81.226,81.135,37.08]
[1770796036958,13.31244428,81.226,81.18,3.10755793]
[1770796037159,13.31244428,81.226,81.17,3.10755793]
[1770796038254,13.12575525,81.225,81.17,3.10755793]
[1770796038459,13.12575525,81.239,81.18,3.10755793]
[1770796038666,13.12575525,81.239,81.19,3.10755793]
[1770796039062,13.12575525,81.239,81.197,11.0924]
[1770796042769,11.0819,81.275,81.21,3.10755793]
[1770796042973,98.28,81.268,81.21,3.10755793]
[1770796043165,3.10755793,81.26,81.218,11.0895]
[1770796043866,3.10755793,81.25,81.21,3.10755793]
[1770796044171,3.10755793,81.24,81.19,3.10755793]
[1770796044666,9.47170958,81.24,81.19,3.10755793]
[1770796045466,6.34263317,81.239,81.19,3.10755793]
[1770796045869,6.34263317,81.239,81.198,11.0922]
[1770796047162,6.34263317,81.219,81.188,11.0936]
[1770796047570,6.33238801,81.232,81.2,3.10755793]
[1770796048772,6.33238801,81.232,81.203,11.0915]
[1770796049768,6.23602866,81.249,81.203,11.0915]
[1770796050469,6.23602866,81.249,81.214,11.0901]
[1770796051272,6.24419208,81.264,81.223,11.0888]
[1770796051468,6.24419208,81.251,81.223,11.0888]
[1770796051672,6.24419208,81.251,81.21,3.10755793]
[1770796052764,6.24419208,81.249,81.2,3.10755793]
[1770796053771,6.24158583,81.239,81.19,3.10755793]
[1770796054674,6.24158583,81.239,81.198,11.0922]
[1770796059679,6.30349944,81.265,81.23,3.10548414]
[1770796059880,6.30349944,81.265,81.22,3.10548414]
[1770796060173,6.30349944,81.265,81.23,3.10548414]
[1770796062471,7.777e-05,81.252,81.23,14.19328414]
[1770796062677,7.777e-05,81.252,81.24,3.10548414]
[1770796063175,6.30654947,81.278,81.24,3.10548414]
[1770796063783,6.30654947,81.278,81.241,11.0863]
[1770796065179,6.30654947,81.278,81.249,11.0852]
[1770796067293,6.35336844,81.289,81.249,11.0852]
[1770796067981,6.35336844,81.289,81.21,27.0]
[1770796067982,6.35336844,81.259,81.21,3.10548414]
[1770796068191,9.45885258,81.25,81.2,3.10548414]
[1770796068494,6.35336844,81.249,81.21,3.10548414]
[1770796069693,6.35336844,81.249,81.211,11.0904]
[1770796070286,6.30591208,81.269,81.23,3.10548414]
[1770796070890,6.30591208,81.269,81.231,11.0877]
[1770796073495,6.30591208,81.269,81.183,59.91864029]
[1770796073496,6.37958411,81.259,81.218,11.0894]
[1770796073698,6.37958411,81.249,81.218,11.0894]
[1770796074995,3.10548414,81.23,81.18,3.10548414]
[1770796075697,3.10548414,81.23,81.197,11.0923]
[1770796077902,3.10548414,81.23,81.18,3.10548414]
[1770796077903,6.39436424,81.229,81.18,3.10548414]
[1770796080099,11.0867,81.239,81.171,11.0959]
[1770796080100,6.41779878,81.219,81.171,11.0959]
[1770796080702,6.41779878,81.219,81.18,3.10548414]
[1770796081602,6.41779878,81.219,81.123,36.96]
[1770796081603,6.41779878,81.219,81.161,11.0973]
[1770796081804,6.4184555,81.209,81.152,12.3188498]
[1770796082008,3.10548414,81.19,81.152,12.3188498]
[1770796082412,6.4184555,81.189,81.152,12.3188498]
[1770796082709,6.4184555,81.189,81.148,11.099]
[1770796083304,6.4184555,81.189,81.14,3.10548414]
[1770796083803,6.38582428,81.179,81.135,11.1008]
[1770796086411,3.10548414,81.19,81.142,11.0999]
[1770796086817,6.37556195,81.204,81.16,3.10548414]
[1770796087208,6.37556195,81.204,81.161,11.0972]
[1770796091917,6.44941843,81.189,81.149,11.0989]
[1770796092313,6.44941843,81.189,81.14,3.10548414]
[1770796092314,9.55490257,81.18,81.14,11.1002]
[1770796093212,6.44941843,81.18,81.14,11.1002]
[1770796093410,6.44941843,81.18,81.14,14.20568414]
[1770796094420,11.0921,81.2,81.15,11.0988]
[1770796094421,6.44123052,81.193,81.15,11.0988]
[1770796094614,6.44123052,81.193,81.14,3.10548414]
[1770796094915,6.44123052,81.193,81.15,3.10548414]
[1770796095618,6.44123052,81.193,81.14,3.10548414]
[1770796097116,3.10548414,81.19,81.14,3.10548414]
[1770796097312,6.4420141,81.189,81.14,3.10548414]
[1770796097919,6.4420141,81.189,81.121,11.1028]
[1770796098124,6.4420141,81.189,81.13,3.10548414]
[1770796098809,6.4420141,81.179,81.13,3.10548414]
[1770796101026,6.45473483,81.193,81.15,3.10548414]
[1770796102419,6.45473483,81.193,81.152,11.0985]
[1770796104214,6.49301739,81.189,81.142,11.0999]
[1770796107525,6.4714293,81.179,81.12,3.10548414]
[1770796108818,6.4714293,81.179,81.124,11.1023]
[1770796109230,6.4714293,81.179,81.13,3.10548414]
[1770796110725,6.4714293,81.179,81.131,11.1014]
[1770796113134,6.47132449,81.149,81.1,3.10548414]
[1770796114034,6.47132449,81.149,81.065,98.32]
[1770796114230,6.47132449,81.149,81.11,3.10548414]
[1770796115831,6.47132449,81.149,81.1,3.10548414]
[1770796116032,6.47132449,81.149,81.09,3.10548414]
[1770796116234,6.48533948,81.139,81.08,3.10548414]
[1770796116826,6.48533948,81.139,81.064,12.49270205]
[1770796117028,6.48533948,81.139,81.09,3.11337426]
[1770796122343,6.48533948,81.139,81.1,3.11337426]
[1770796122543,98.34,81.156,81.078,484.50982516]
[1770796122544,6.46549217,81.152,81.11,3.11337426]
[1770796123143,6.46549217,81.152,81.12,3.11337426]
[1770796123350,6.46549217,81.152,81.11,3.11337426]
[1770796123549,6.46549217,81.152,81.103,11.1052]
[1770796123550,6.46549217,81.152,81.12,3.11337426]
[1770796124141,6.46316187,81.169,81.12,3.11337426]
[1770796125548,6.46316187,81.169,81.11,3.11337426]
[1770796125749,6.46361823,81.159,81.11,3.11337426]
[1770796127248,3.11337426,81.15,81.103,11.1052]
[1770796128248,9.49790776,81.15,81.103,11.1052]
[1770796128449,6.3845335,81.149,81.103,11.1052]
[1770796132149,6.37409126,81.163,81.12,3.11337426]
[1770796133250,6.37409126,81.163,81.097,98.36]
[1770796133251,6.37409126,81.163,81.131,11.1014]
[1770796134752,6.39129235,81.159,81.122,11.1026]
[1770796138642,6.39129235,81.159,81.111,11.1041]
[1770796142249,9.49334334,81.18,81.13,3.11231132]
[1770796142560,6.38103202,81.179,81.13,3.11231132]
[1770796143756,6.38103202,81.179,81.138,11.1004]
[1770796147158,6.38103202,81.179,81.129,11.1016]
[1770796148258,6.38103202,81.179,81.131,11.1013]
[1770796150060,6.38103202,81.179,81.12,3.11231132]
[1770796151352,6.38103202,81.179,81.13,3.11231132]
[1770796152261,6.41898552,81.159,81.1,3.11231132]
[1770796152460,6.41898552,81.149,81.1,3.11231132]
[1770796155657,6.42079438,81.146,81.09,3.11231132]
[1770796156565,6.42079438,81.146,81.1,3.11231132]
[1770796156765,3.11231132,81.15,81.1,3.11231132]
[1770796156766,6.42079438,81.144,81.1,3.11231132]
[1770796166165,98.34,81.17,81.075,98.34]
[1770796166166,6.39623615,81.129,81.08,3.11231132]
[1770796166465,3.11231132,81.15,81.1,3.11231132]
[1770796166665,6.39623615,81.149,81.1,3.11231132]
[1770796166867,6.39623615,81.149,81.075,22.83864029]
[1770796167071,6.39623615,81.149,81.1,3.11231132]
[1770796167771,6.39828805,81.148,81.1,3.11231132]
[1770796169064,6.39828805,81.159,81.12,3.11231132]
[1770796169262,6.40261147,81.171,81.13,3.11231132]
[1770796169873,102.52,81.191,81.12,3.11231132]
[1770796169874,6.40261147,81.169,81.12,3.11231132]
[1770796170570,3.11231132,81.18,81.13,3.11231132]
[1770796170762,6.40261147,81.182,81.13,3.11231132]
[1770796171162,6.40261147,81.182,81.14,3.11231132]
[1770796171775,6.39947478,81.179,81.13,3.11231132]
[1770796174671,3.11231132,81.17,81.105,98.36]
[1770796174878,6.42173444,81.149,81.1,3.11231132]
[1770796175269,3.11231132,81.14,81.09,11.107]
[1770796175465,6.42253795,81.139,81.09,14.21931132]
[1770796176274,6.42253795,81.129,81.08,3.11231132]
[1770796176976,6.42253795,81.129,81.09,3.11362052]
[1770796178671,6.42253795,81.129,81.078,484.50982516]
[1770796178871,6.42253795,81.129,81.09,3.11362052]
[1770796180281,6.42174522,81.143,81.1,3.11362052]
[1770796181674,6.45989936,81.138,81.09,3.11362052]
[1770796182275,6.45989936,81.138,81.08,3.11362052]
[1770796183783,6.46821785,81.133,81.08,3.11362052]
[1770796184585,6.46821785,81.133,81.09,3.11362052]
[1770796185176,6.46821785,81.13,81.09,3.11362052]
[1770796185375,6.46821785,81.13,81.08,3.11362052]
[1770796185576,6.48071217,81.129,81.08,3.11362052]
[1770796187886,6.48584864,81.122,81.08,3.11362052]
[1770796189486,9.58962861,81.12,81.078,484.50982516]
[1770796189681,6.47600809,81.119,81.078,484.50982516]
[1770796190780,11.1033,81.118,81.078,484.50982516]
[1770796190980,6.47588349,81.117,81.08,3.11362052]
[1770796191788,17.54844511,81.112,81.08,3.11362052]
[1770796192088,17.54844511,81.112,81.07,101.49362052]
[1770796193075,6.44434511,81.109,81.07,98.38]
[1770796193281,6.44434511,81.109,81.063,98.38]
[1770796193585,6.44434511,81.109,81.07,3.11362052]
[1770796194289,6.44150901,81.121,81.08,3.11362052]
[1770796196984,6.44150901,81.121,81.047,12.61909454]
[1770796196985,6.36551846,81.109,81.034,22.83864029]
[1770796197184,6.36551846,81.109,81.07,3.11362052]
[1770796199790,6.23611439,81.107,81.07,3.11362052]
[1770796200390,6.23611439,81.107,81.06,3.11362052]
[1770796200687,6.23611439,81.124,81.08,3.11362052]
[1770796200884,6.23611439,81.119,81.07,3.11362052]
[1770796201784,6.23931239,81.111,81.07,3.11362052]
[1770796202093,6.23931239,81.109,81.05,3.11362052]
[1770796202689,6.23931239,81.098,81.05,3.11362052]
[1770796202885,3.11362052,81.11,81.07,3.11362052]
[1770796202886,6.23931239,81.11,81.07,3.11362052]
[1770796203281,17.34371239,81.11,81.07,3.11362052]
[1770796203492,6.22811595,81.109,81.07,3.11362052]
[1770796204392,11.1034,81.117,81.08,3.11362052]
[1770796204593,6.22811595,81.139,81.1,3.11362052]
[1770796206492,6.22811595,81.139,81.11,3.11362052]
[1770796206694,6.22811595,81.139,81.1,3.11362052]
[1770796207488,3.11362052,81.15,81.1,3.11362052]
[1770796207489,6.21354756,81.134,81.1,3.11362052]
[1770796207889,6.21354756,81.134,81.09,3.11362052]
[1770796208388,6.21354756,81.134,81.1,3.11362052]
[1770796208590,11.1005,81.138,81.11,3.11362052]
[1770796210589,11.0992,81.148,81.12,3.11362052]
[1770796210990,6.30477929,81.147,81.11,3.11362052]
[1770796211795,11.1008,81.136,81.11,3.11362052]
[1770796212193,11.1008,81.136,81.1,3.11362052]
[1770796212394,6.30204196,81.135,81.1,3.11362052]
[1770796214791,11.099,81.149,81.12,3.11362052]
[1770796215793,4.89090708,81.14,81.1,3.11362052]
[1770796215995,4.89090708,81.139,81.09,3.11362052]
[1770796216189,4.89090708,81.139,81.056,22.83864029]
[1770796216190,4.89090708,81.129,81.08,3.11362052]
[1770796217802,11.1028,81.122,81.08,3.11362052]
[1770796217998,15.92799211,81.122,81.08,3.11362052]
[1770796218203,4.82519211,81.121,81.08,3.11362052]
[1770796219700,4.82519211,81.116,81.07,3.11362052]
[1770796220895,4.82489046,81.113,81.07,3.11362052]
[1770796223009,11.1041,81.112,81.07,3.11362052]
[1770796224300,4.82489046,81.113,81.08,3.11362052]
[1770796225807,4.82512466,81.12,81.08,3.11362052]
[1770796230603,11.1017,81.13,81.09,3.11362052]
[1770796230808,4.82512466,81.133,81.1,3.11362052]
[1770796232205,4.82512466,81.133,81.09,3.11362052]
[1770796233702,4.82512466,81.145,81.1,3.11362052]
[1770796234107,4.82512466,81.145,81.11,3.11362052]
[1770796238416,4.82512466,81.143,81.1,3.11362052]
[1770796238609,3.11362052,81.14,81.09,3.11362052]
[1770796238809,4.82512466,81.139,81.09,3.11362052]
[1770796239012,4.82512466,81.139,81.09,3.1137]
[1770796239704,4.82512466,81.129,81.09,3.1137]
[1770796240114,4.82512466,81.129,81.08,3.1137]
[1770796241805,4.82512466,81.126,81.08,3.1137]
[1770796247422,4.82512466,81.123,81.08,3.1137]
[1770796250017,4.82512466,81.123,81.084,11.1078]
[1770796250318,4.82512466,81.123,81.09,3.1137]
[1770796258029,4.82512466,81.123,81.09,3.11357912]
[1770796258228,4.82512466,81.123,81.084,11.1078]
[1770796264038,4.82504373,81.121,81.06,98.38]
[1770796264237,4.82504373,81.109,81.05,3.11357912]
[1770796264448,4.82504373,81.109,81.03,27.0]
[1770796264449,4.82504373,81.109,81.06,3.11357912]
[1770796265849,4.82504373,81.109,81.064,11.1106]
[1770796266450,4.82504373,81.099,81.054,11.1119]
[1770796269551,4.82504373,81.119,81.07,3.11357912]
[1770796271251,4.82504373,81.119,81.08,3.11357912]
[1770796271747,4.82504373,81.13,81.09,3.11357912]
[1770796271943,4.82504373,81.13,81.1,3.11357912]
[1770796272147,9.13865406,81.149,81.1,3.11357912]
[1770796272148,4.82504373,81.149,81.1,3.11357912]
[1770796272843,4.82504373,81.149,81.11,3.11357912]
[1770796277350,4.82504373,81.149,81.058,36.96]
[1770796277351,4.82504373,81.139,81.095,11.1064]
[1770796277855,4.82504373,81.139,81.09,3.11357912]
[1770796282056,4.82504373,81.139,81.1,3.11357912]
[1770796283457,4.82460506,81.151,81.089,22.83864029]
[1770796283651,11.0984,81.154,81.12,3.11357912]
[1770796284057,11.0989,81.15,81.12,3.11357912]
[1770796284258,11.0989,81.15,81.11,3.11357912]
[1770796285155,4.82460506,81.149,81.11,3.11357912]
[1770796285757,11.0993,81.147,81.11,3.11357912]
[1770796286764,4.82460506,81.149,81.11,3.11357912]
[1770796292766,4.82460506,81.149,81.1,3.11357912]
[1770796292961,4.82460506,81.149,81.089,11.1071]
[1770796292962,4.82553605,81.139,81.09,3.11357912]
[1770796294773,4.82553605,81.139,81.1,3.11357912]
[1770796295857,4.82553605,81.139,81.09,3.11357912]
[1770796296063,4.82553605,81.139,81.1,3.11357912]
[1770796296271,4.84083384,81.15,81.11,3.11357912]
[1770796297266,4.84083384,81.15,81.059,30.44733408]
[1770796297267,4.84083384,81.164,81.12,3.11357912]
[1770796298361,4.84206139,81.174,81.13,3.11357912]
[1770796298769,4.84206139,81.174,81.14,3.11357912]
[1770796298968,4.84206139,81.174,81.14,3.10947705]
[1770796299370,327.21256167,81.213,81.14,3.10947705]
[1770796299371,4.84206139,81.211,81.14,3.10947705]
[1770796299566,4.84206139,81.211,81.109,98.36]
[1770796299567,4.84206139,81.211,81.145,11.0995]
[1770796299767,4.84206139,81.211,81.17,3.10947705]
[1770796300173,4.84206139,81.211,81.145,11.0995]
[1770796300471,4.84206139,81.211,81.17,3.10947705]
[1770796300875,11.0907,81.21,81.17,3.10947705]
[1770796301176,10.38945723,81.219,81.17,3.10947705]
[1770796301472,10.38945723,81.205,81.16,3.10947705]
[1770796302066,10.38945723,81.23,81.136,98.36]
[1770796302374,10.38945723,81.23,81.2,3.10947705]
[1770796302977,21.55330012,81.243,81.2,3.10947705]
[1770796303378,10.46720012,81.242,81.2,3.10947705]
[1770796303573,10.46720012,81.242,81.21,3.10947705]
[1770796304872,10.52084323,81.269,81.22,3.10947705]
[1770796305479,10.52084323,81.269,81.191,11.0932]
[1770796305678,10.52084323,81.259,81.22,3.10947705]
[1770796305980,13.63032028,81.27,81.22,3.10947705]
[1770796306175,10.52084323,81.289,81.24,3.10947705]
[1770796306481,3.10947705,81.28,81.23,3.10947705]
[1770796306676,10.47844909,81.279,81.23,3.10947705]
[1770796309977,98.32,81.295,81.22,3.10947705]
[1770796309978,10.43504542,81.269,81.22,3.10947705]
[1770796310274,3.10947705,81.29,81.23,3.10947705]
[1770796310474,10.41737459,81.289,81.23,3.10947705]
[1770796310873,10.41737459,81.269,81.201,11.0918]
[1770796311074,10.41737459,81.269,81.22,3.10947705]
[1770796311271,10.41737459,81.269,81.23,3.10947705]
[1770796313179,10.41737459,81.269,81.24,3.10947705]
[1770796313387,10.41737459,81.269,81.23,3.10947705]
[1770796313780,10.41737459,81.269,81.22,3.10947705]
[1770796314682,2.14184161,81.315,81.186,477.47135207]
[1770796314683,3.10947705,81.25,81.2,3.10947705]
[1770796314882,10.39991023,81.249,81.2,3.10947705]
[1770796315585,10.39991023,81.249,81.21,3.10947705]
[1770796315983,10.39991023,81.249,81.2,3.10947705]
[1770796318582,10.39991023,81.249,81.205,11.0913]
[1770796320087,10.39991023,81.249,81.193,11.0929]
[1770796320291,10.3861717,81.239,81.193,11.0929]
[1770796320591,10.3861717,81.239,81.204,11.0914]
[1770796321487,98.24,81.271,81.215,11.0898]
[1770796321686,3.10947705,81.26,81.215,11.0898]
[1770796321885,3.10947705,81.25,81.2,3.10947705]
[1770796322688,11.0823,81.272,81.205,11.0912]
[1770796322889,98.24,81.28,81.21,3.10947705]
[1770796322890,3.10947705,81.27,81.21,3.10947705]
[1770796323294,3.10947705,81.27,81.22,3.10947705]
[1770796323495,5.18279282,81.269,81.22,3.10947705]
[1770796324689,5.18279282,81.269,81.225,11.0885]
[1770796324890,5.20034023,81.259,81.225,11.0885]
[1770796325292,5.20034023,81.259,81.215,11.0898]
[1770796325600,3.10947705,81.26,81.2,3.10947705]
[1770796325601,5.20034023,81.249,81.2,3.10947705]
[1770796326100,5.20034023,81.249,81.21,3.10947705]
[1770796326395,5.20034023,81.249,81.2,3.10947705]
[1770796326602,5.20034023,81.249,81.21,3.10947705]
[1770796327101,5.20034023,81.249,81.2,3.10947705]
[1770796328897,5.20034023,81.249,81.21,3.10947705]
[1770796329699,5.20034023,81.249,81.193,98.24]
[1770796329700,5.20034023,81.249,81.2,3.10947705]
[1770796331694,5.20034023,81.249,81.21,3.10947705]
[1770796331898,5.20354566,81.261,81.193,98.24]
[1770796332197,5.20354566,81.279,81.23,3.10947705]
[1770796332402,5.20354566,81.279,81.24,3.10947705]
[1770796333499,5.20354566,81.279,81.23,3.10947705]
[1770796334293,5.19719611,81.294,81.25,3.10947705]
[1770796335198,5.19719611,81.294,81.231,11.0877]
[1770796335399,5.19719611,81.294,81.25,3.10947705]
[1770796335808,3.10947705,81.29,81.24,3.10947705]
[1770796336106,5.18864362,81.289,81.25,3.10947705]
[1770796338808,5.18864362,81.289,81.26,3.10947705]
[1770796339007,5.18616407,81.309,81.26,3.10947705]
[1770796339706,5.18616407,81.309,81.27,3.10947705]
[1770796340618,5.18616407,81.309,81.28,3.10947705]
[1770796340815,5.18616407,81.309,81.27,3.10947705]
[1770796341518,5.18616407,81.309,81.26,3.10947705]
[1770796341708,5.18616407,81.309,81.27,3.10947705]
[1770796342211,5.18616407,81.309,81.26,3.10947705]
[1770796342815,5.18266174,81.299,81.25,3.10947705]
[1770796343211,5.18266174,81.299,81.26,3.10947705]
[1770796343920,5.18266174,81.299,81.25,3.10947705]
[1770796344123,5.18266174,81.299,81.26,3.10947705]
[1770796346424,5.10881018,81.296,81.25,3.10947705]
[1770796346730,5.10881018,81.269,81.22,3.10947705]
[1770796347219,5.10881018,81.282,81.24,3.10947705]
[1770796347420,5.10881018,81.282,81.23,3.10947705]
[1770796347725,5.10881018,81.279,81.23,3.10947705]
[1770796348719,11.0784,81.301,81.208,11.0909]
[1770796348720,5.11501404,81.269,81.22,3.10947705]
[1770796349120,5.11501404,81.269,81.23,3.10947705]
[1770796349719,5.11501404,81.299,81.24,3.10947705]
[1770796349918,5.11501404,81.289,81.24,3.10947705]
[1770796350918,5.14440216,81.309,81.25,3.10947705]
[1770796351221,5.14440216,81.299,81.25,3.10947705]
[1770796351426,5.14440216,81.299,81.26,3.10947705]
[1770796354117,5.14440216,81.299,81.24,11.0864]
[1770796354321,3.10947705,81.29,81.24,3.10947705]
[1770796354625,5.17615713,81.289,81.24,3.10947705]
[1770796357834,5.19323853,81.279,81.23,3.10947705]
[1770796358826,5.19323853,81.279,81.22,3.10947705]
[1770796359030,5.19121209,81.269,81.22,3.10287196]
[1770796359729,5.19121209,81.269,81.221,11.0891]
[1770796360231,5.19121209,81.289,81.23,3.10287196]
[1770796360925,5.1963504,81.279,81.23,3.10287196]
[1770796361131,5.1963504,81.279,81.22,3.10287196]
[1770796361726,5.1963504,81.279,81.232,11.0875]
[1770796362127,5.1963504,81.269,81.22,3.10287196]
[1770796363730,5.2345953,81.259,81.2,3.10287196]
[1770796363930,5.2345953,81.249,81.2,3.10287196]
[1770796364930,5.2345953,81.249,81.204,11.0914]
[1770796367230,5.19346861,81.263,81.22,3.10287196]
[1770796367436,5.19346861,81.263,81.217,11.0896]
[1770796367930,5.19346861,81.259,81.217,11.0896]
[1770796369830,4.45e-05,81.275,81.24,3.10287196]
[1770796370533,4.45e-05,81.275,81.22,3.10287196]
[1770796370735,4.45e-05,81.275,81.22,3.06063266]
[1770796370936,4.45e-05,81.275,81.23,3.10287196]
[1770796371827,4.45e-05,81.275,81.237,11.0869]
[1770796372642,4.45e-05,81.275,81.23,3.10287196]
[1770796372835,4.45e-05,81.275,81.24,3.10287196]
[1770796373830,3.76453961,81.289,81.24,3.10287196]
[1770796374239,3.76453961,81.289,81.24,6.17423908]
[1770796375138,3.76453961,81.303,81.26,3.10287196]
[1770796375945,3.76453961,81.303,81.256,3.07136712]
[1770796376241,3.76453961,81.337,81.261,3.07136712]
[1770796376434,3.76453961,81.335,81.28,3.10287196]
[1770796376839,3.76453961,81.335,81.281,3.11164186]
[1770796377142,3.76453961,81.335,81.29,3.10287196]
[1770796377346,3.76453961,81.335,81.281,3.11164186]
[1770796378744,3.76453961,81.335,81.29,3.09835312]
[1770796379042,3.76453961,81.335,81.281,3.11164186]
[1770796379232,3.76453961,81.334,81.268,3.08487421]
[1770796379437,3.09835312,81.33,81.281,3.08487421]
[1770796379639,3.76453961,81.329,81.281,3.08487421]
[1770796380240,3.76453961,81.329,81.29,3.09835312]
[1770796380444,9.0204333,81.37,81.29,3.09835312]
[1770796380445,3.76453961,81.343,81.291,3.11647346]
[1770796381350,3.76453961,81.343,81.3,3.09835312]